fUSD/lending_fUSD_20251006
["ID","MTS","AMOUNT","RATE_DAILY","PERIOD"]
[389644916,1759765839018,-1422.77,0.00016438,2]
[389644917,1759765839027,-500.0,0.00016438,2]
[389644918,1759765839036,-1384.23716135,0.00016438,2]
[389644921,1759765840576,-38.53283865,0.00016438,2]
[389644922,1759765840586,-361.46716135,0.00016438,2]
[389644923,1759765840597,-138.53283865,0.00016438,2]
[389644924,1759765840607,-500.0,0.00016438,2]
[389644925,1759765840617,-82.62483498,0.00016438,2]
[389644926,1759765840631,-1340.14516502,0.00016438,2]
[389644927,1759765840641,-500.0,0.00016438,2]
[389644928,1759765840651,-292.69579498,0.00016438,2]
[389644929,1759765840887,-929.60641877,0.00016438,2]
[389644930,1759765840899,-200.46778625,0.00016438,2]
[389644931,1759765840909,-500.0,0.00016438,2]
[389644932,1759765840918,-1422.77,0.00016438,2]
[389644933,1759765840928,-500.0,0.00016438,2]
[389644934,1759765840937,-1422.77,0.00016438,2]
[389644935,1759765840947,-1422.77,0.00016438,2]
[389644936,1759765840956,-1422.77,0.00016438,2]
[389644937,1759765840966,-1422.77,0.00016438,2]
[389644938,1759765840975,-1422.77,0.00016438,2]
[389644939,1759765840984,-1422.77,0.00016438,2]
[389644940,1759765840993,-1422.77,0.00016438,2]
[389644941,1759765841003,-1422.77,0.00016438,2]
[389644942,1759765841012,-500.0,0.00016438,2]
[389644944,1759765841023,-1422.77,0.00016438,2]
[389644946,1759765841033,-500.0,0.00016438,2]
[389644948,1759765841043,-1422.77,0.00016438,2]
[389644950,1759765841052,-500.0,0.00016438,2]
[389644952,1759765841062,-500.0,0.00016438,2]
[389644953,1759765841082,-1422.77,0.00016438,2]
[389644954,1759765841091,-500.0,0.00016438,2]
[389644955,1759765841101,-1422.77,0.00016438,2]
[389644956,1759765841110,-500.0,0.00016438,2]
[389644957,1759765841120,-1422.81847368,0.00016438,2]
[389644958,1759765841130,-500.0,0.00016438,2]
[389644959,1759765841140,-500.0,0.00016438,2]
[389644960,1759765841149,-500.0,0.00016438,2]
[389644961,1759765841158,-500.0,0.00016438,2]
[389644962,1759765841167,-500.0,0.00016438,2]
[389644963,1759765841177,-500.0,0.00016438,2]
[389644964,1759765841186,-164.23536799,0.00016438,2]
[389644965,1759765841195,-500.0,0.00016438,2]
[389644966,1759765841205,-500.0,0.00016438,2]
[389644967,1759765841214,-500.0,0.00016438,2]
[389644968,1759765841223,-839.0,0.00016438,2]
[389644969,1759765841233,-500.0,0.00016438,2]
[389644970,1759765841242,-500.0,0.00016438,2]
[389644971,1759765841252,-500.0,0.00016438,2]
[389644972,1759765841261,-500.0,0.00016438,2]
[389644973,1759765841272,-500.0,0.00016438,2]
[389644974,1759765841281,-153.2968704,0.00016438,2]
[389644975,1759765841291,-151.0,0.00016438,2]
[389644976,1759765841300,-151.0,0.00016438,2]
[389644977,1759765841310,-151.0,0.00016438,2]
[389644978,1759765841319,-151.0,0.00016438,2]
[389644979,1759765841328,-153.09747,0.00016438,2]
[389644980,1759765841338,-151.0,0.00016438,2]
[389644981,1759765841347,-151.0,0.00016438,2]
[389644982,1759765841356,-151.0,0.00016438,2]
[389644983,1759765841366,-151.0,0.00016438,2]
[389644984,1759765841375,-500.0,0.00016438,2]
[389644985,1759765841384,-500.0,0.00016438,2]
[389644986,1759765841393,-500.0,0.00016438,2]
[389644987,1759765841403,-470.7340049,0.00016438,2]
[389644988,1759765841412,-150.0,0.00016438,2]
[389644989,1759765841421,-151.0,0.00016438,2]
[389644990,1759765841431,-151.0,0.00016438,2]
[389644991,1759765841440,-152.0705,0.00016438,2]
[389644992,1759765841449,-150.0,0.00016438,2]
[389644993,1759765841458,-150.74817396,0.00016438,2]
[389644994,1759765841468,-151.0,0.00016438,2]
[389644995,1759765841478,-151.0,0.00016438,2]
[389644996,1759765841487,-151.0,0.00016438,2]
[389644997,1759765841496,-577.54995074,0.00016438,2]
[389644998,1759765841505,-151.0,0.00016438,2]
[389644999,1759765841515,-151.0,0.00016438,2]
[389645000,1759765841525,-151.0,0.00016438,2]
[389645001,1759765841534,-150.0,0.00016438,2]
[389645002,1759765841544,-247.28162,0.00016438,2]
[389645003,1759765841553,-500.0,0.00016438,2]
[389645004,1759765841562,-500.0,0.00016438,2]
[389645005,1759765841576,-151.0,0.00016438,2]
[389645006,1759765841585,-151.0,0.00016438,2]
[389645007,1759765841595,-151.348064,0.00016438,2]
[389645008,1759765841604,-880.31,0.00016438,2]
[389645009,1759765841615,-880.31,0.00016438,2]
[389645010,1759765841624,-880.31,0.00016438,2]
[389645011,1759765841633,-880.31,0.00016438,2]
[389645012,1759765841643,-880.31,0.00016438,2]
[389645013,1759765841653,-880.31,0.00016438,2]
[389645014,1759765841662,-880.31,0.00016438,2]
[389645015,1759765841671,-880.31,0.00016438,2]
[389645016,1759765841680,-880.31,0.00016438,2]
[389645017,1759765841689,-880.31,0.00016438,2]
[389645018,1759765841699,-880.31,0.00016438,2]
[389645019,1759765841708,-151.936854,0.00016438,2]
[389645020,1759765841717,-500.0,0.00016438,2]
[389645021,1759765841726,-880.31,0.00016438,2]
[389645022,1759765841735,-500.0,0.00016438,2]
[389645023,1759765841745,-880.31,0.00016438,2]
[389645024,1759765841754,-500.0,0.00016438,2]
[389645025,1759765841763,-880.31,0.00016438,2]
[389645026,1759765841773,-484.73,0.00016438,2]
[389645027,1759765841782,-151.0,0.00016438,2]
[389645028,1759765841791,-880.31,0.00016438,2]
[389645029,1759765841800,-880.31,0.00016438,2]
[389645030,1759765841809,-393.71486162,0.00016438,2]
[389645037,1759765843554,-341.856,0.00016438,2]
[389645038,1759765843566,-144.73913838,0.00016438,2]
[389645039,1759765843576,-108.73086162,0.00016438,2]
[389645040,1759765843590,-343.4,0.00016438,2]
[389645041,1759765843602,-428.17913838,0.00016438,2]
[389645042,1759765843611,-343.63408582,0.00016438,2]
[389645043,1759765843624,-261.28597632,0.00016438,2]
[389645044,1759765843637,-275.38993786,0.00016438,2]
[389645045,1759765843646,-151.0,0.00016438,2]
[389645046,1759765843658,-249.04085776,0.00016438,2]
[389645047,1759765843756,-390.56999998,0.00016438,2]
[389645048,1759765843767,-240.69914226,0.00016438,2]
[389645049,1759765843776,-151.0,0.00016438,2]
[389645050,1759765843785,-880.31,0.00016438,2]
[389645051,1759765843795,-880.31,0.00016438,2]
[389645053,1759765843804,-880.31,0.00016438,2]
[389645055,1759765843812,-880.36939383,0.00016438,2]
[389645057,1759765843821,-151.0,0.00016438,2]
[389645058,1759765843830,-151.0,0.00016438,2]
[389645060,1759765843839,-151.0,0.00016438,2]
[389645062,1759765843849,-500.0,0.00016438,2]
[389645065,1759765843859,-155.69,0.00016438,2]
[389645067,1759765843868,-151.0,0.00016438,2]
[389645069,1759765843877,-216.224616,0.00016438,2]
[389645071,1759765843887,-153.814194,0.00016438,2]
[389645073,1759765843896,-500.0,0.00016438,2]
[389645075,1759765843905,-500.0,0.00016438,2]
[389645077,1759765843914,-500.0,0.00016438,2]
[389645078,1759765843923,-500.0,0.00016438,2]
[389645081,1759765843933,-118.0007396,0.00016438,2]
[389645083,1759765843948,-383.67352356,0.00016438,2]
[389645085,1759765843958,-495.64424238,0.00016438,2]
[389645092,1759765844106,-50.26575762,0.00016438,2]
[389645093,1759765844116,-144.30515758,0.00016438,2]
[389645094,1759765844127,-401.60484242,0.00016438,2]
[389645095,1759765844137,-545.91,0.00016438,2]
[389645096,1759765844147,-545.91,0.00016438,2]
[389645097,1759765844156,-545.91,0.00016438,2]
[389645098,1759765844165,-545.91,0.00016438,2]
[389645099,1759765844174,-46.87236392,0.00016438,2]
[389645100,1759765844186,-324.22946303,0.00016438,2]
[389645101,1759765844480,-174.80817305,0.00016438,2]
[389645102,1759765844490,-545.91,0.00016438,2]
[389645103,1759765844499,-545.91,0.00016438,2]
[389645104,1759765844508,-545.91,0.00016438,2]
[389645105,1759765844517,-545.91,0.00016438,2]
[389645106,1759765844526,-545.91,0.00016438,2]
[389645107,1759765844536,-500.0,0.00016438,2]
[389645108,1759765844545,-545.91,0.00016438,2]
[389645109,1759765844555,-500.0,0.00016438,2]
[389645110,1759765844565,-500.0,0.00016438,2]
[389645111,1759765844580,-500.0,0.00016438,2]
[389645112,1759765844589,-545.91,0.00016438,2]
[389645113,1759765844599,-151.0,0.00016438,2]
[389645114,1759765844608,-500.0,0.00016438,2]
[389645115,1759765844618,-151.0,0.00016438,2]
[389645116,1759765844628,-500.0,0.00016438,2]
[389645117,1759765844637,-545.91,0.00016438,2]
[389645118,1759765844646,-500.0,0.00016438,2]
[389645119,1759765844657,-545.91,0.00016438,2]
[389645120,1759765844670,-545.91,0.00016438,2]
[389645121,1759765844679,-500.0,0.00016438,2]
[389645122,1759765844688,-545.91,0.00016438,2]
[389645123,1759765844698,-500.0,0.00016438,2]
[389645124,1759765844707,-545.91,0.00016438,2]
[389645125,1759765844716,-500.0,0.00016438,2]
[389645126,1759765844726,-545.91,0.00016438,2]
[389645127,1759765844735,-325.73030356,0.00016438,2]
[389645128,1759765844745,-545.91,0.00016438,2]
[389645129,1759765844754,-545.91,0.00016438,2]
[389645130,1759765844763,-545.91,0.00016438,2]
[389645131,1759765844775,-546.08,0.00016438,2]
[389645132,1759765844784,-151.0,0.00016438,2]
[389645133,1759765844794,-151.0,0.00016438,2]
[389645134,1759765844804,-500.0,0.00016438,2]
[389645135,1759765844813,-151.0,0.00016438,2]
[389645136,1759765844822,-610.74,0.00016438,2]
[389645137,1759765844832,-151.0,0.00016438,2]
[389645138,1759765844842,-151.0,0.00016438,2]
[389645139,1759765844851,-197.14842,0.00016438,2]
[389645140,1759765844861,-328.38462922,0.00016438,2]
[389645141,1759765844870,-500.0,0.00016438,2]
[389645142,1759765844879,-500.0,0.00016438,2]
[389645143,1759765844888,-500.0,0.00016438,2]
[389645144,1759765844898,-500.0,0.00016438,2]
[389645145,1759765844907,-229.02527,0.00016438,2]
[389645146,1759765844917,-151.0,0.00016438,2]
[389645147,1759765844927,-500.0,0.00016438,2]
[389645148,1759765844936,-151.0,0.00016438,2]
[389645149,1759765844946,-500.0,0.00016438,2]
[389645150,1759765844955,-229.02527,0.00016438,2]
[389645151,1759765844965,-151.0,0.00016438,2]
[389645152,1759765844975,-500.0,0.00016438,2]
[389645153,1759765844984,-229.02527,0.00016438,2]
[389645154,1759765844993,-500.0,0.00016438,2]
[389645155,1759765845003,-151.0,0.00016438,2]
[389645156,1759765845012,-229.02527,0.00016438,2]
[389645157,1759765845022,-500.0,0.00016438,2]
[389645158,1759765845031,-250.74,0.00016438,2]
[389645159,1759765845041,-151.0,0.00016438,2]
[389645160,1759765845050,-229.02527,0.00016438,2]
[389645161,1759765845060,-151.0,0.00016438,2]
[389645162,1759765845069,-229.02527,0.00016438,2]
[389645163,1759765845078,-151.0,0.00016438,2]
[389645164,1759765845088,-229.02527,0.00016438,2]
[389645165,1759765845098,-229.02527,0.00016438,2]
[389645166,1759765845107,-151.509688,0.00016438,2]
[389645167,1759765845118,-229.02527,0.00016438,2]
[389645168,1759765845128,-271.10628107,0.00016438,2]
[389645169,1759765845137,-229.02527,0.00016438,2]
[389645170,1759765845146,-151.0,0.00016438,2]
[389645171,1759765845155,-151.0,0.00016438,2]
[389645172,1759765845164,-229.02527,0.00016438,2]
[389645173,1759765845173,-229.02527,0.00016438,2]
[389645174,1759765845182,-229.02527,0.00016438,2]
[389645175,1759765845191,-229.02527,0.00016438,2]
[389645176,1759765845200,-229.02527,0.00016438,2]
[389645177,1759765845209,-229.02527,0.00016438,2]
[389645178,1759765845218,-1000.0,0.00016438,2]
[389645179,1759765845227,-1000.0,0.00016438,2]
[389645180,1759765845236,-950.23018886,0.00016438,2]
[389645181,1759765845289,-49.76981114,0.00016438,2]
[389645182,1759765845299,-20.99401545,0.00016438,2]
[389645183,1759765845311,-130.00598455,0.00016438,2]
[389645184,1759765845322,-151.0,0.00016438,2]
[389645185,1759765845332,-500.0,0.00016438,2]
[389645186,1759765845341,-3.92890811,0.00016438,2]
[389645187,1759765845352,-435.00135649,0.00016438,2]
[389645277,1759765846307,-61.0697354,0.00016438,2]
[389645279,1759765846321,-500.0,0.00016438,2]
[389645282,1759765846331,-500.0,0.00016438,2]
[389645285,1759765846341,-500.0,0.00016438,2]
[389645288,1759765846350,-297.03026304,0.00016438,2]
[389645298,1759765846425,-202.96973696,0.00016438,2]
[389645300,1759765846436,-500.0,0.00016438,2]
[389645302,1759765846446,-500.0,0.00016438,2]
[389645304,1759765846455,-500.0,0.00016438,2]
[389645307,1759765846465,-500.0,0.00016438,2]
[389645309,1759765846475,-134.2802554,0.00016438,2]
[389645311,1759765846487,-222.53594518,0.00016438,2]
[389645313,1759765846496,-500.0,0.00016438,2]
[389645315,1759765846506,-500.0,0.00016438,2]
[389645317,1759765846516,-500.0,0.00016438,2]
[389645319,1759765846528,-640.29924393,0.00016438,2]
[389645321,1759765846538,-500.0,0.00016438,2]
[389645323,1759765846548,-500.0,0.00016438,2]
[389645325,1759765846558,-481.32552674,0.00016438,2]
[389645328,1759765846573,-18.67447326,0.00016438,2]
[389645330,1759765846583,-500.0,0.00016438,2]
[389645332,1759765846593,-500.0,0.00016438,2]
[389645334,1759765846603,-500.0,0.00016438,2]
[389645336,1759765846612,-500.0,0.00016438,2]
[389645338,1759765846623,-500.0,0.00016438,2]
[389645340,1759765846632,-500.0,0.00016438,2]
[389645342,1759765846642,-500.0,0.00016438,2]
[389645344,1759765846651,-500.0,0.00016438,2]
[389645346,1759765846662,-500.0,0.00016438,2]
[389645348,1759765846673,-500.0,0.00016438,2]
[389645350,1759765846682,-339.0593189,0.00016438,2]
[389645352,1759765846695,-160.9406811,0.00016438,2]
[389645354,1759765846705,-500.0,0.00016438,2]
[389645356,1759765846716,-500.0,0.00016438,2]
[389645358,1759765846726,-500.0,0.00016438,2]
[389645360,1759765846737,-500.0,0.00016438,2]
[389645363,1759765846747,-339.72,0.00016438,2]
[389645365,1759765846758,-21.9135001,0.00016438,2]
[389645367,1759765846771,-478.0864999,0.00016438,2]
[389645369,1759765846781,-500.0,0.00016438,2]
[389645371,1759765846791,-500.0,0.00016438,2]
[389645373,1759765846800,-500.0,0.00016438,2]
[389645375,1759765846810,-500.0,0.00016438,2]
[389645377,1759765846820,-500.0,0.00016438,2]
[389645379,1759765846829,-500.0,0.00016438,2]
[389645381,1759765846838,-500.0,0.00016438,2]
[389645383,1759765846848,-500.0,0.00016438,2]
[389645385,1759765846857,-500.0,0.00016438,2]
[389645387,1759765846867,-500.0,0.00016438,2]
[389645389,1759765846876,-500.0,0.00016438,2]
[389645391,1759765846886,-758.96,0.00016438,2]
[389645393,1759765846895,-586.29435585,0.00016438,2]
[389645395,1759765846905,-758.96,0.00016438,2]
[389645397,1759765846914,-758.96,0.00016438,2]
[389645399,1759765846924,-758.96,0.00016438,2]
[389645401,1759765846933,-758.96,0.00016438,2]
[389645403,1759765846943,-758.96,0.00016438,2]
[389645405,1759765846953,-758.96,0.00016438,2]
[389645408,1759765846962,-758.96,0.00016438,2]
[389645410,1759765846972,-758.96,0.00016438,2]
[389645412,1759765846982,-758.96,0.00016438,2]
[389645414,1759765846991,-758.96,0.00016438,2]
[389645416,1759765847001,-758.96,0.00016438,2]
[389645418,1759765847014,-758.96,0.00016438,2]
[389645420,1759765847025,-1363.1,0.00016438,2]
[389645422,1759765847035,-758.96,0.00016438,2]
[389645424,1759765847045,-1363.1,0.00016438,2]
[389645426,1759765847055,-758.96,0.00016438,2]
[389645428,1759765847064,-1363.1,0.00016438,2]
[389645430,1759765847074,-758.96,0.00016438,2]
[389645432,1759765847084,-1363.1,0.00016438,2]
[389645434,1759765847094,-758.96,0.00016438,2]
[389645436,1759765847103,-1363.1,0.00016438,2]
[389645438,1759765847113,-758.96,0.00016438,2]
[389645441,1759765847124,-1363.1,0.00016438,2]
[389645443,1759765847134,-758.96,0.00016438,2]
[389645445,1759765847143,-2144.6,0.00016438,2]
[389645447,1759765847153,-1363.1,0.00016438,2]
[389645449,1759765847162,-758.96,0.00016438,2]
[389645451,1759765847172,-2144.6,0.00016438,2]
[389645453,1759765847181,-1363.1,0.00016438,2]
[389645455,1759765847191,-758.96,0.00016438,2]
[389645457,1759765847201,-2144.6,0.00016438,2]
[389645459,1759765847211,-1363.1,0.00016438,2]
[389645461,1759765847221,-758.96,0.00016438,2]
[389645463,1759765847231,-2144.6,0.00016438,2]
[389645465,1759765847240,-950.20482849,0.00016438,2]
[389645468,1759765847255,-412.89517151,0.00016438,2]
[389645470,1759765847265,-19.77259006,0.00016438,2]
[389645472,1759765847278,-739.18740994,0.00016438,2]
[389645474,1759765847288,-907.53259006,0.00016438,2]
[389645476,1759765847300,-720.71109436,0.00016438,2]
[389645478,1759765847312,-516.35631558,0.00016438,2]
[389645480,1759765847323,-164.60688434,0.00016438,2]
[389645483,1759765847334,-1198.49311566,0.00016438,2]
[389645485,1759765847346,-759.01429129,0.00016438,2]
[389645487,1759765847355,-1363.1,0.00016438,2]
[389645489,1759765847365,-1011.41235893,0.00016438,2]
[389645491,1759765847377,-1133.18764107,0.00016438,2]
[389645493,1759765847387,-231.16675743,0.00016438,2]
[389645495,1759765847399,-1131.93324257,0.00016438,2]
[389645498,1759765847408,-2144.6,0.00016438,2]
[389645500,1759765847418,-2144.6,0.00016438,2]
[389645501,1759765847428,-1085.59641524,0.00016438,2]
[389645504,1759765847440,-277.50358476,0.00016438,2]
[389645526,1759765847808,-2144.6,0.00016438,2]
[389645528,1759765847818,-1136.97254164,0.00016438,2]
[389645530,1759765847830,-226.12745836,0.00016438,2]
[389645532,1759765847840,-2144.6,0.00016438,2]
[389645534,1759765847850,-1363.1,0.00016438,2]
[389645536,1759765847860,-2144.6,0.00016438,2]
[389645538,1759765847869,-1363.1,0.00016438,2]
[389645540,1759765847879,-2144.6,0.00016438,2]
[389645542,1759765847888,-1363.1,0.00016438,2]
[389645544,1759765847897,-2144.6,0.00016438,2]
[389645546,1759765847907,-6770.69,0.00016438,2]
[389645548,1759765847916,-1363.1,0.00016438,2]
[389645550,1759765847925,-500.0,0.00016438,2]
[389645552,1759765847934,-2144.6,0.00016438,2]
[389645554,1759765847944,-6770.69,0.00016438,2]
[389645556,1759765847953,-1363.1,0.00016438,2]
[389645558,1759765847963,-500.0,0.00016438,2]
[389645560,1759765847972,-2144.6,0.00016438,2]
[389645562,1759765847982,-6770.69,0.00016438,2]
[389645564,1759765847991,-500.0,0.00016438,2]
[389645566,1759765848000,-2144.6,0.00016438,2]
[389645568,1759765848011,-1363.1,0.00016438,2]
[389645570,1759765848022,-2237.41458459,0.00016438,2]
[389645573,1759765848037,-4533.27541541,0.00016438,2]
[389645575,1759765848046,-500.0,0.00016438,2]
[389645577,1759765848056,-2144.6,0.00016438,2]
[389645579,1759765848065,-1363.1,0.00016438,2]
[389645581,1759765848075,-500.0,0.00016438,2]
[389645583,1759765848084,-6770.69,0.00016438,2]
[389645584,1759765848094,-2144.6,0.00016438,2]
[389645587,1759765848104,-1363.1,0.00016438,2]
[389645588,1759765848113,-500.0,0.00016438,2]
[389645590,1759765848123,-6770.69,0.00016438,2]
[389645592,1759765848134,-2144.6,0.00016438,2]
[389645594,1759765848144,-1363.27,0.00016438,2]
[389645597,1759765848154,-6770.69,0.00016438,2]
[389645598,1759765848164,-500.0,0.00016438,2]
[389645601,1759765848173,-2144.6,0.00016438,2]
[389645603,1759765848183,-500.0,0.00016438,2]
[389645605,1759765848194,-151.0,0.00016438,2]
[389645607,1759765848203,-6770.69,0.00016438,2]
[389645609,1759765848213,-500.0,0.00016438,2]
[389645611,1759765848222,-2144.6,0.00016438,2]
[389645613,1759765848232,-4607.47811299,0.00016438,2]
[389645615,1759765848244,-1114.42500001,0.00016438,2]
[389646796,1759766496574,5512.0,0.000109,5]
[389646797,1759766535015,500.0,5.509e-05,2]
[389646798,1759766535069,500.0,5.509e-05,2]
[389646799,1759766535414,500.0,5.509e-05,2]
[389646800,1759766535452,500.0,5.509e-05,2]
[389646801,1759766535828,500.0,5.509e-05,2]
[389646802,1759766536359,500.0,5.509e-05,2]
[389646803,1759766536405,500.0,5.509e-05,2]
[389646804,1759766536755,500.0,5.509e-05,2]
[389646805,1759766537102,500.0,5.509e-05,2]
[389646806,1759766537615,500.0,5.509e-05,2]
[389646807,1759766537818,500.0,5.509e-05,2]
[389646808,1759766537963,500.0,5.509e-05,2]
[389646809,1759766538237,500.0,5.509e-05,2]
[389646810,1759766538343,500.0,4e-05,2]
[389646811,1759766538549,500.0,4e-05,2]
[389646812,1759766538720,500.0,4e-05,2]
[389646813,1759766538760,500.0,5.509e-05,2]
[389646814,1759766538887,500.0,4e-05,2]
[389646815,1759766539069,900.0,4e-05,2]
[389646816,1759766539108,500.0,4e-05,2]
[389646817,1759766539461,820.41410664,4e-05,2]
[389646818,1759766539521,500.0,4e-05,2]
[389646819,1759766539881,500.0,4e-05,2]
[389646820,1759766540288,500.0,4e-05,2]
[389646821,1759766540662,500.0,4e-05,2]
[389646822,1759766540997,600.0,4e-05,2]
[389646823,1759766541807,700.0,5.509e-05,2]
[389646824,1759766542489,500.0,5.509e-05,2]
[389646825,1759766542627,500.0,5.509e-05,2]
[389646826,1759766542815,500.0,4e-05,2]
[389646827,1759766543046,500.0,4e-05,2]
[389646828,1759766545996,500.0,5.509e-05,2]
[389646829,1759766546375,500.0,5.509e-05,2]
[389646830,1759766546692,500.0,5.509e-05,2]
[389646831,1759766547050,500.0,5.509e-05,2]
[389646832,1759766547418,500.0,5.509e-05,2]
[389646833,1759766547772,500.0,5.509e-05,2]
[389646834,1759766548193,500.0,4e-05,2]
[389646835,1759766548523,500.0,4e-05,2]
[389646836,1759766548897,500.0,4e-05,2]
[389646837,1759766549267,500.0,4e-05,2]
[389646838,1759766549726,600.0,4e-05,2]
[389646846,1759766923801,613.58,7.497e-05,2]
[389646847,1759766924032,613.58,7.892e-05,2]
[389646848,1759766924239,613.58,8.287e-05,2]
[389646849,1759766924437,613.58,8.681e-05,2]
[389646850,1759766924943,613.58,9.076e-05,2]
[389646851,1759766925035,613.58,9.47e-05,2]
[389646852,1759766925130,613.58,9.865e-05,2]
[389646853,1759766925366,613.58,0.0001026,2]
[389646854,1759766925626,613.58,0.00010654,2]
[389646855,1759766926060,613.58,0.00011049,2]
[389646856,1759766926371,613.58,0.00011443,2]
[389646857,1759766926579,613.58,0.00011838,2]
[389646858,1759766945541,-613.58,0.00012233,2]
[389646859,1759766945563,-613.58,0.00012627,2]
[389646860,1759766945584,-613.58,0.00013022,2]
[389646861,1759766945605,-613.58,0.00013416,2]
[389646862,1759766945625,-613.58,0.00013811,2]
[389646863,1759766945646,-613.58,0.00014206,2]
[389646864,1759766945667,-613.58,0.000146,2]
[389646865,1759766946538,276.32993464,0.00013456,2]
[389646895,1759767031682,-363.48,0.00014962,2]
[389646896,1759767031692,-613.58,0.00014995,2]
[389646897,1759767031702,-277.51020746,0.00015,20]
[389646898,1759767031727,-17.10584058,0.00015,20]
[389646899,1759767031736,-270.32146999,0.0001505,2]
[389646900,1759767031748,-359.61853001,0.0001505,2]
[389646901,1759767031757,-150.0,0.0001505,7]
[389646902,1759767031767,-73.24634179,0.0001514,2]
[389646903,1759767031778,-76.75365821,0.0001514,2]
[389646904,1759767031787,-300.0,0.000152,2]
[389646905,1759767031797,-274.733641,0.000152,2]
[389646906,1759767031809,-925.266359,0.000152,2]
[389646907,1759767031818,-150.0,0.00015218,2]
[389646908,1759767031827,-302.75,0.00015219,2]
[389646909,1759767031837,-305.43,0.00015219,2]
[389646910,1759767031846,-300.17,0.00015219,2]
[389646911,1759767031855,-302.92,0.00015219,2]
[389646912,1759767031864,-300.66,0.00015219,2]
[389646913,1759767031874,-301.04,0.00015219,2]
[389646914,1759767031883,-302.99,0.00015219,2]
[389646915,1759767031893,-300.49,0.00015219,2]
[389646916,1759767031903,-500.0,0.00015219,2]
[389646917,1759767031913,-500.0,0.00015219,2]
[389646918,1759767031923,-500.0,0.00015219,2]
[389646919,1759767031938,-1512.65,0.00015219,2]
[389646920,1759767031948,-304.81,0.00015261,2]
[389646921,1759767031958,-300.0,0.00015261,2]
[389646922,1759767031967,-303.28,0.00015261,2]
[389646923,1759767031977,-304.07,0.00015261,2]
[389646924,1759767031987,-1150.48,0.00015261,2]
[389646925,1759767031996,-162.38,0.00015362,2]
[389646926,1759767032007,-150.0,0.000154,2]
[389646927,1759767032016,-365.84753059,0.00015429,2]
[389646928,1759767032030,-159.46827941,0.00015429,2]
[389646929,1759767032040,-151.0,0.00015429,2]
[389646930,1759767032051,-200.0,0.00015429,2]
[389646931,1759767032061,-601.3376128,0.00015429,2]
[389646932,1759767032070,-77.74143972,0.00015429,2]
[389646933,1759767032083,-73.25856028,0.00015429,2]
[389646934,1759767032093,-151.0,0.00015429,2]
[389646935,1759767032103,-500.0,0.00015429,2]
[389646936,1759767032112,-500.0,0.00015429,2]
[389646937,1759767032122,-309.3684005,0.00015429,2]
[389646938,1759767032146,-190.6315995,0.00015429,2]
[389646939,1759767032155,-322.6107,0.00015429,2]
[389646940,1759767032165,-231.28369723,0.00015429,2]
[389646942,1759767032174,-313.67897412,0.00015429,2]
[389646943,1759767032184,-500.0,0.00015438,2]
[389646944,1759767032194,-500.0,0.00015438,2]
[389646945,1759767032204,-444.19929225,0.00015438,2]
[389646946,1759767032216,-55.80070775,0.00015438,2]